Workbook

Sheet Cover

Sheet Report
A2: Updated: April 18, 2013
A3: Revisions Noted in Bold
A4: Dynamically positioned «
E6: Yr. (1) | F6: Water | G6: Drilling | J6: Estimated | K6: Estimated | L6: Dayrate on | M6: Dayrate on | O6: Estimated Out of Service Days (4)
B7: Footnote | C7: Floater | D7: Dynamically | E7: Entered | F7: Depth | G7: Depth | J7: Contract | K7: Expiration | L7: Current Contract (3) | M7: Previous Contract (3) | O7: 2013
A8: Rig Type/Name | B8: References | C8: Type | D8: Positioned | E8: Service | F8: (Feet) | G8: (Feet) | H8: Location | I8: Customer | J8: Start Date (2) | K8: Date (2) | L8: (Dollars) | M8: (Dollars) | O8: Q1 | P8: Q2 | Q8: Q3 | R8: Q4
A10: Rigs Under Construction (8)
A12: Deepwater Asgard | C12: ship | D12: « | E12: TBA | F12: 12000 | G12: 40000 | H12: Indonesia | I12: TBA | J12: Q1 2014 | K12: Q1 2017 | L12: 600000 | M12: N/A | O12: 0 | P12: 0 | Q12: 0 | R12: 0
A13: Deepwater Invictus | B13: (6), (11) | C13: ship | D13: « | E13: TBA | F13: 12000 | G13: 40000 | H13: USGOM | I13: BHP Billiton | J13: Q3 2014 | K13: Q2 2017 | L13: 595000 | M13: N/A | O13: 0 | P13: 0 | Q13: 0 | R13: 0
A14: DSME 12000 Drillship TBN1 | B14: (6), (11) | C14: ship | D14: « | E14: TBA | F14: 12000 | G14: 40000 | H14: TBA | I14: Shell | J14: Q4 2015 | K14: Q4 2025 | L14: 519000 | M14: N/A | O14: 0 | P14: 0 | Q14: 0 | R14: 0
A15: DSME 12000 Drillship TBN2 | B15: (6), (11) | C15: ship | D15: « | E15: TBA | F15: 12000 | G15: 40000 | H15: TBA | I15: Shell | J15: Q2 2016 | K15: Q2 2026 | L15: 519000 | M15: N/A | O15: 0 | P15: 0 | Q15: 0 | R15: 0
A16: DSME 12000 Drillship TBN3 | B16: (6), (11) | C16: ship | D16: « | E16: TBA | F16: 12000 | G16: 40000 | H16: TBA | I16: Shell | J16: Q4 2016 | K16: Q4 2026 | L16: 519000 | M16: N/A | O16: 0 | P16: 0 | Q16: 0 | R16: 0
A17: DSME 12000 Drillship TBN4 | B17: (6), (11) | C17: ship | D17: « | E17: TBA | F17: 12000 | G17: 40000 | H17: TBA | I17: Shell | J17: Q2 2017 | K17: Q2 2027 | L17: 519000 | M17: N/A | O17: 0 | P17: 0 | Q17: 0 | R17: 0
A18: Transocean Andaman | B18: (6), (11) | E18: TBA | F18: 350 | G18: 35000 | H18: Thailand | I18: Chevron | J18: Q2 2013 | K18: Q2 2016 | L18: 145000 | M18: N/A | O18: 0 | P18: 0 | Q18: 0 | R18: 0
A19: Transocean Ao Thai | B19: (6), (11) | E19: TBA | F19: 350 | G19: 35000 | H19: Thailand | I19: Chevron | J19: Q4 2013 | K19: Q4 2018 | L19: 135000 | M19: N/A | O19: 0 | P19: 0 | Q19: 0 | R19: 0
A21: High Specification Floater: Ultra-Deepwater (27)
A23: Discoverer Americas | B23: -6 | C23: ship | D23: « | E23: 2009 | F23: 12000 | G23: 40000 | H23: Mozambique | I23: Statoil | J23: 2013-03-01 | K23: 2013-09-01 | L23: 585000 | M23: 509000 | O23: 0 | P23: 0 | Q23: 0 | R23: 0
B24: (6), (20) | H24: Tanzania | I24: Statoil | J24: 2013-09-01 | K24: 2014-03-01 | L24: 514000 | M24: 585000
B25: -6 | H25: USGOM | I25: Statoil | J25: 2014-03-01 | K25: 2016-03-01 | L25: 600000 | M25: 514000
A26: Deepwater Champion | B26: -6 | C26: ship | D26: « | E26: 2011 | F26: 12000 | G26: 40000 | H26: USGOM | I26: ExxonMobil | J26: 2012-06-01 | K26: 2015-11-01 | L26: 669000 | M26: 655000 | O26: 0 | P26: 0 | Q26: 0 | R26: 10
A27: Discoverer Clear Leader | B27: (6), (13) | C27: ship | D27: « | E27: 2009 | F27: 12000 | G27: 40000 | H27: USGOM | I27: Chevron | J27: 2010-09-01 | K27: 2014-08-01 | L27: 561000 | M27: 503000 | O27: 0 | P27: 0 | Q27: 0 | R27: 0
A28: Discoverer Inspiration | B28: -6 | C28: ship | D28: « | E28: 2010 | F28: 12000 | G28: 40000 | H28: USGOM | I28: Chevron | J28: 2010-09-01 | K28: 2015-03-01 | L28: 517000 | M28: 494000 | O28: 0 | P28: 0 | Q28: 0 | R28: 0
A29: Dhirubhai Deepwater KG1 | C29: ship | D29: « | E29: 2009 | F29: 12000 | G29: 35000 | H29: India | I29: Reliance | J29: 2009-08-01 | K29: 2014-07-01 | L29: 510000 | M29: N/A | O29: 0 | P29: 0 | Q29: 0 | R29: 0
A30: Dhirubhai Deepwater KG2 | C30: ship | D30: « | E30: 2010 | F30: 12000 | G30: 35000 | H30: India | I30: Reliance | J30: 2012-03-01 | K30: 2015-02-01 | L30: 510000 | M30: 573000 | O30: 0 | P30: 0 | Q30: 0 | R30: 0
A31: Discoverer India | B31: -15 | C31: ship | D31: « | E31: 2010 | F31: 12000 | G31: 40000 | H31: USGOM | I31: Reliance | J31: 2011-08-01 | K31: 2013-09-01 | L31: 499000 | M31: 508000 | O31: 8 | P31: 0 | Q31: 0 | R31: 0
H32: India | I32: Reliance | J32: 2013-09-01 | K32: 2020-11-01 | L32: 508000 | M32: 499000
A33: Petrobras 10000 | B33: (6), (7), (8) | C33: ship | D33: « | E33: 2009 | F33: 12000 | G33: 37500 | H33: Brazil | I33: Petrobras | J33: 2011-02-01 | K33: 2019-08-01 | L33: 423000 | M33: N/A | O33: 0 | P33: 0 | Q33: 0 | R33: 0
A34: Discoverer Deep Seas | B34: -6 | C34: ship | D34: « | E34: 2001 | F34: 10000 | G34: 35000 | H34: USGOM | I34: Chevron | J34: 2011-02-01 | K34: 2013-04-01 | L34: 456000 | M34: 517000 | O34: 0 | P34: 0 | Q34: 0 | R34: 0
H35: USGOM | I35: Chevron | J35: 2013-04-01 | K35: 2013-07-01 | L35: 595000 | M35: 456000
H36: USGOM | I36: Murphy Oil | J36: 2013-07-01 | K36: 2016-07-01 | L36: 595000 | M36: 595000
A37: Discoverer Enterprise | B37: -6 | C37: ship | D37: « | E37: 1999 | F37: 10000 | G37: 35000 | H37: USGOM | I37: BP | J37: 2013-01-01 | K37: 2014-01-01 | L37: 496000 | M37: 523000 | O37: 0 | P37: 0 | Q37: 0 | R37: 0
A38: Discoverer Spirit | B38: -6 | C38: ship | D38: « | E38: 2000 | F38: 10000 | G38: 35000 | H38: USGOM | I38: Anadarko | J38: 2012-07-01 | K38: 2014-06-01 | L38: 546000 | M38: 564000 | O38: 0 | P38: 0 | Q38: 7 | R38: 0
A39: GSF C.R. Luigs | B39: -6 | C39: ship | D39: « | E39: 2000 | F39: 10000 | G39: 35000 | H39: USGOM | I39: BHP Billiton | J39: 2011-12-01 | K39: 2014-02-01 | L39: 534000 | M39: 411000 | O39: 0 | P39: 10 | Q39: 0 | R39: 0
A40: GSF Jack Ryan | B40: -6 | C40: ship | D40: « | E40: 2000 | F40: 10000 | G40: 35000 | H40: Nigeria | I40: Total | J40: 2009-06-01 | K40: 2014-07-01 | L40: 425000 | M40: 297000 | O40: 0 | P40: 0 | Q40: 0 | R40: 0
A41: Deepwater Discovery | B41: (6), (7) | C41: ship | D41: « | E41: 2000 | F41: 10000 | G41: 30000 | H41: Brazil | I41: BP | J41: 2011-08-01 | K41: 2013-08-01 | L41: 463,000 | M41: 425000 | O41: 0 | P41: 0 | Q41: 16 | R41: 0
A42: Deepwater Frontier | B42: -6 | C42: ship | D42: « | E42: 1999 | F42: 10000 | G42: 30000 | H42: Australia | I42: ExxonMobil | J42: 2012-03-01 | K42: 2014-05-01 | L42: 475000 | M42: 477000 | O42: 0 | P42: 0 | Q42: 0 | R42: 0
A43: Deepwater Millennium | B43: -6 | C43: ship | D43: « | E43: 1999 | F43: 10000 | G43: 30000 | H43: Kenya | I43: Anadarko | J43: 2012-12-01 | K43: 2013-06-01 | L43: 570000 | M43: 545000 | O43: 0 | P43: 0 | Q43: 0 | R43: 0
B44: -6 | H44: Mozambique | I44: Anadarko | J44: 2013-06-01 | K44: 2013-08-01 | L44: 545000 | M44: 570000
A45: Deepwater Pathfinder | B45: -6 | C45: ship | D45: « | E45: 1998 | F45: 10000 | G45: 30000 | H45: USGOM | I45: Eni | J45: 2010-08-01 | K45: 2015-04-01 | L45: 674000 | M45: 550000 | O45: 0 | P45: 0 | Q45: 12 | R45: 0
A46: Deepwater Expedition | C46: ship | D46: « | E46: 1999 | F46: 8500 | G46: 30000 | H46: Saudi Arabia | I46: Saudi Aramco | J46: 2012-11-01 | K46: 2014-11-01 | L46: 650000 | M46: 640000 | O46: 0 | P46: 0 | Q46: 0 | R46: 0
A47: Cajun Express | B47: (6), (7) | C47: semi | D47: « | E47: 2001 | F47: 8500 | G47: 35000 | H47: Brazil | I47: Petrobras | J47: 2010-05-01 | K47: 2013-06-01 | L47: 520000 | M47: 493000 | O47: 0 | P47: 0 | Q47: 78 | R47: 12
B48: (6), (21) | H48: Morocco/Senegal | I48: Cairn Energy | J48: 2013-10-01 | K48: 2014-10-01 | L48: 600000 | M48: 520000
A49: Deepwater Nautilus | B49: (6), (8) | C49: semi | E49: 2000 | F49: 8000 | G49: 30000 | H49: USGOM | I49: Shell | J49: 2012-08-01 | K49: 2017-08-01 | L49: 525000 | M49: 551000 | O49: 0 | P49: 0 | Q49: 0 | R49: 0
A50: GSF Explorer | C50: ship | D50: « | E50: 1972/1998 | F50: 7800 | G50: 30000 | H50: Singapore | K50: Idle | O50: 19 | P50: 0 | Q50: 0 | R50: 11
A51: Discoverer Luanda | B51: (6), (14) | C51: ship | D51: « | E51: 2010 | F51: 7500 | G51: 40000 | H51: Angola | I51: BP | J51: 2011-01-01 | K51: 2018-01-01 | L51: 470000 | M51: N/A | O51: 0 | P51: 0 | Q51: 0 | R51: 0
A52: GSF Development Driller I | B52: -6 | C52: semi | D52: « | E52: 2005 | F52: 7500 | G52: 37500 | H52: USGOM | I52: BHP Billiton | J52: 2012-10-01 | K52: 2014-08-01 | L52: 580000 | M52: 525000 | O52: 0 | P52: 0 | Q52: 71 | R52: 0
A53: GSF Development Driller II | B53: -6 | C53: semi | D53: « | E53: 2005 | F53: 7500 | G53: 37500 | H53: USGOM | I53: BP | J53: 2008-11-01 | K53: 2013-11-01 | L53: 596000 | M53: 208000 | O53: 0 | P53: 0 | Q53: 0 | R53: 12
A54: Development Driller III | B54: -6 | C54: semi | D54: « | E54: 2009 | F54: 7500 | G54: 37500 | H54: USGOM | I54: BP | J54: 2009-11-01 | K54: 2016-11-01 | L54: 418000 | M54: N/A | O54: 0 | P54: 0 | Q54: 0 | R54: 0
A55: Sedco Energy | C55: semi | D55: « | E55: 2001 | F55: 7500 | G55: 35000 | H55: Ghana | I55: Tullow | J55: 2011-10-01 | K55: 2013-11-01 | L55: 440000 | M55: N/A | O55: 0 | P55: 0 | Q55: 0 | R55: 0
A56: Sedco Express | B56: -7 | C56: semi | D56: « | E56: 2001 | F56: 7500 | G56: 35000 | H56: Nigeria | I56: ENI | J56: 2013-01-01 | K56: 2014-10-01 | L56: 600000 | M56: 500000 | O56: 44.33333333 | P56: 0 | Q56: 0 | R56: 0
M58: Total Estimated Days Out of Service | O58: =SUM(O23:O56) -> 71.33333333 | P58: =SUM(P23:P56) -> 10 | Q58: =SUM(Q23:Q56) -> 184 | R58: =SUM(R23:R56) -> 45
M59: Estimated Average Contract Dayrate(5) | O59: 521000 | P59: 532000 | Q59: 530000 | R59: 534000
A61: High Specification Floater: Deepwater (14)
A63: Deepwater Navigator | B63: (7), (8), (16) | C63: ship | D63: « | E63: 1971/2000 | F63: 7200 | G63: 25000 | H63: Brazil | I63: Petrobras | J63: 2011-05-01 | K63: 2016-02-01 | L63: 367000 | M63: 190000 | O63: 0 | P63: 0 | Q63: 0 | R63: 0
A64: Discoverer Seven Seas | C64: ship | D64: « | E64: 1976/1997 | F64: 7000 | G64: 25000 | H64: Indonesia | I64: Inpex | J64: 2013-06-01 | K64: 2013-11-01 | L64: 500000 | M64: 490000 | O64: 32.85416667 | P64: 14 | Q64: 0 | R64: 0
A65: Transocean Marianas | B65: -8 | C65: semi | E65: 1979/1998 | F65: 7000 | G65: 30000 | H65: Namibia | I65: HRT | J65: 2013-03-01 | K65: 2013-12-01 | L65: 530000 | M65: 456000 | O65: 61.95833333 | P65: 0 | Q65: 0 | R65: 0
A66: Sedco 706 | B66: (6), (7) | C66: semi | D66: « | E66: 1976/1994/ 2008 | F66: 6500 | G66: 25000 | H66: Brazil | I66: Chevron | J66: 2009-04-01 | K66: 2014-04-01 | L66: 311000 | M66: N/A | O66: 0 | P66: 0 | Q66: 0 | R66: 0
A67: Sedco 702 | B67: (6), (7), (12) | C67: semi | D67: « | E67: 1973/2007 | F67: 6500 | G67: 25000 | H67: Nigeria | I67: Shell | J67: 2012-09-01 | K67: 2016-01-01 | L67: 461000 | M67: 357000 | O67: 0 | P67: 0 | Q67: 0 | R67: 92
A68: Sedco 707 | B68: (7), (8), (16) | C68: semi | D68: « | E68: 1976/1997 | F68: 6500 | G68: 25000 | H68: Brazil | I68: Petrobras | J68: 2009-11-01 | K68: 2014-11-01 | L68: 385000 | M68: 188000 | O68: 90.04166667 | P68: 79 | Q68: 0 | R68: 0
A69: GSF Celtic Sea | B69: -6 | C69: semi | E69: 1982/1998 | F69: 5750 | G69: 25000 | H69: Angola | I69: ExxonMobil | J69: 2012-08-01 | K69: 2013-08-01 | L69: 324000 | M69: 320,000 | O69: 0 | P69: 0 | Q69: 0 | R69: 0
B70: -6 | H70: Angola | I70: ExxonMobil | J70: 2013-08-01 | K70: 2014-08-01 | L70: 328000 | M70: 324000
B71: -6 | H71: Angola | I71: ExxonMobil | J71: 2014-08-01 | K71: 2014-09-01 | L71: 332000 | M71: 328000
A72: Jack Bates | C72: semi | E72: 1986/1997 | F72: 5400 | G72: 30000 | H72: Australia | I72: Santos | J72: 2012-07-01 | K72: 2013-07-01 | L72: 380000 | M72: 380000 | O72: 0 | P72: 0 | Q72: 0 | R72: 0
A73: Sedco 709 | C73: semi | D73: « | E73: 1977/1999 | F73: 5000 | G73: 25000 | H73: Malaysia | K73: Stacked | O73: 0 | P73: 0 | Q73: 0 | R73: 0
A74: M.G. Hulme, Jr. | B74: -7 | C74: semi | E74: 1983/1996 | F74: 5000 | G74: 25000 | H74: India | I74: ONGC | J74: 2011-09-01 | K74: 2013-08-01 | L74: 212000 | M74: N/A | O74: 0 | P74: 0 | Q74: 21 | R74: 77
A75: Transocean Richardson | C75: semi | E75: 1988 | F75: 5000 | G75: 25000 | H75: Malaysia | K75: Stacked | O75: 0 | P75: 0 | Q75: 0 | R75: 0
A76: Sedco 710 | B76: (7), (8), (16) | C76: semi | D76: « | E76: 1983/2001 | F76: 4500 | G76: 25000 | H76: Brazil | I76: Petrobras | J76: 2010-10-01 | K76: 2016-09-01 | L76: 279000 | M76: 128000 | O76: 0 | P76: 60 | Q76: 0 | R76: 0
A77: Transocean Rather | C77: semi | E77: 1988 | F77: 4500 | G77: 25000 | H77: Angola | I77: ExxonMobil | J77: 2012-10-01 | K77: 2013-06-01 | L77: 350000 | M77: 437000 | O77: 0 | P77: 0 | Q77: 0 | R77: 0
A78: Sovereign Explorer | C78: semi | E78: 1984 | F78: 4500 | G78: 25000 | H78: USGOM | K78: Stacked | O78: 0 | P78: 0 | Q78: 0 | R78: 0
M80: Total Estimated Days Out of Service | O80: =SUM(O63:O78) -> 184.8541667 | P80: =SUM(P63:P78) -> 153 | Q80: 21 | R80: 169
M81: Estimated Average Contract Dayrate(5) | O81: 356000 | P81: 371000 | Q81: 379000 | R81: 380000
A83: High Specification Floater: Harsh Environment (7)
A85: Transocean Barents | B85: (6), (7),(18) | C85: semi | D85: « | E85: 2009 | F85: 10000 | G85: 30000 | H85: NNS | I85: DNO | J85: 2012-12-01 | K85: 2013-11-01 | L85: 590000 | M85: 552000 | O85: 0 | P85: 0 | Q85: 0 | R85: 0
B86: (6), (7) | H86: NNS | I86: DNO | J86: 2013-11-01 | K86: 2014-01-01 | L86: 511000 | M86: 590000
B87: (6), (7) | H87: =H86 -> NNS | I87: =I86 -> DNO | J87: 2014-01-01 | K87: 2014-06-01 | L87: 590000 | M87: 511000
A88: Transocean Spitsbergen | B88: (6), (7), (17) | C88: semi | D88: « | E88: 2010 | F88: 10000 | G88: 30000 | H88: NNS | I88: Statoil | J88: 2011-10-01 | K88: 2013-07-01 | L88: 507000 | M88: N/A | O88: 0 | P88: 0 | Q88: 0 | R88: 0
B89: (6), (7) | H89: NNS | I89: Statoil | J89: 2013-07-01 | K89: 2015-07-01 | L89: 549000 | M89: 507000
A90: Henry Goodrich | B90: -6 | C90: semi | E90: 1985/2007 | F90: 5000 | G90: 30000 | H90: Canada | I90: Husky | J90: 2010-10-01 | K90: 2014-04-01 | L90: 347000 | M90: 381000 | O90: 5 | P90: 0 | Q90: 0 | R90: 0
A91: Transocean Leader | B91: (6), (7) | C91: semi | E91: 1987/1997 | F91: 4500 | G91: 25000 | H91: NNS | I91: Statoil | J91: 2012-03-01 | K91: 2015-03-01 | L91: 412000 | M91: 469000 | O91: 3 | P91: 0 | Q91: 0 | R91: 0
A92: Paul B. Loyd, Jr. | B92: (6), (7) | C92: semi | E92: 1990 | F92: 2000 | G92: 25000 | H92: UKNS | I92: BP | J92: 2012-03-01 | K92: 2013-09-01 | L92: 345000 | M92: 517000 | O92: 0 | P92: 0 | Q92: 0 | R92: 0
B93: (6), (7) | H93: UKNS | I93: BP | J93: 2013-09-01 | K93: 2015-03-01 | L93: 438000 | M93: 345000
A94: Transocean Arctic | B94: (6), (7) | C94: semi | E94: 1986 | F94: 1650 | G94: 25000 | H94: NNS | I94: Rig Management Norway | J94: 2012-07-01 | K94: 2013-09-01 | L94: 426000 | M94: 292000 | O94: 0 | P94: 0 | Q94: 0 | R94: 0
B95: (6), (7) | H95: NNS | I95: Rig Management Norway | J95: 2013-09-01 | K95: 2014-07-01 | L95: 418000 | M95: 426000
B96: (6), (7) | H96: NNS | I96: Rig Management Norway | J96: 2014-07-01 | K96: 2015-08-01 | L96: 422000 | M96: 418000
A97: Polar Pioneer | B97: (6), (7) | C97: semi | E97: 1985 | F97: 1500 | G97: 25000 | H97: NNS | I97: Statoil | J97: 2010-02-01 | K97: 2014-01-01 | L97: 527000 | M97: 309000 | O97: 0 | P97: 0 | Q97: 0 | R97: 0
M99: Total Estimated Days Out of Service | O99: =SUM(O85:O97) -> 8 | P99: =SUM(P85:P97) -> 0 | Q99: 0 | R99: 0
M100: Estimated Average Contract Dayrate(5) | O100: 443000 | P100: 451000 | Q100: 457000 | R100: 465000
A102: Midwater Floaters (25)
A104: Sedco 700 | C104: semi | E104: 1973/1997 | F104: 3600 | G104: 25000 | H104: Malaysia | K104: Stacked | O104: 0 | P104: 0 | Q104: 0 | R104: 0
A105: Transocean Legend | C105: semi | E105: 1983 | F105: 3500 | G105: 25000 | H105: Australia | I105: Conoco Phillips | J105: 2012-03-01 | K105: 2013-11-01 | L105: 293000 | M105: 300000 | O105: 0 | P105: 18 | Q105: 27 | R105: 0
A106: Transocean Amirante | C106: semi | E106: 1978/1997 | F106: 3500 | G106: 25000 | H106: Egypt | I106: Burullus Gas Company | J106: 2012-12-01 | K106: 2013-06-01 | L106: 305000 | M106: 275000 | O106: 0 | P106: 0 | Q106: 0 | R106: 0
A107: GSF Arctic I | B107: (6), (7) | C107: semi | E107: 1983/1996 | F107: 3400 | G107: 25000 | H107: Spain | K107: Idle | O107: 0 | P107: 0 | Q107: 0 | R107: 0
A108: C. Kirk Rhein, Jr. | C108: semi | E108: 1976/1997 | F108: 3300 | G108: 25000 | H108: Malaysia | K108: Stacked | O108: 0 | P108: 0 | Q108: 0 | R108: 0
A109: Transocean Driller | B109: (7), (8) | C109: semi | E109: 1991 | F109: 3000 | G109: 25000 | H109: Brazil | I109: Petrobras | J109: 2010-07-01 | K109: 2016-07-01 | L109: 260000 | M109: 116000 | O109: 0 | P109: 0 | Q109: 0 | R109: 0
A110: GSF Rig 135 | C110: semi | E110: 1983 | F110: 2800 | G110: 25000 | H110: Congo | I110: Total | J110: 2013-07-01 | K110: 2015-07-01 | L110: 365000 | M110: 340000 | O110: 0 | P110: 76 | Q110: 24 | R110: 0
A111: GSF Rig 140 | B111: (6) | C111: semi | E111: 1983 | F111: 2800 | G111: 25000 | H111: India | I111: ONGC | J111: 2012-03-01 | K111: 2014-04-01 | L111: 260000 | M111: N/A | O111: 0 | P111: 21 | Q111: 0 | R111: 0
A112: Falcon 100 | B112: (7), (8) | C112: semi | E112: 1974/1999 | F112: 2400 | G112: 25000 | H112: Brazil | I112: Petrobras | J112: 2008-03-01 | K112: 2013-04-01 | L112: 240000 | M112: 180000 | O112: 0 | P112: 0 | Q112: 0 | R112: 0
A113: GSF Aleutian Key | C113: semi | E113: 1976/1999/ 2001 | F113: 2300 | G113: 25000 | H113: Gabon | K113: Stacked | O113: 0 | P113: 0 | Q113: 0 | R113: 0
A114: Sedco 703 | C114: semi | E114: 1973/1995 | F114: 2000 | G114: 25000 | H114: Malaysia | K114: Stacked | O114: 0 | P114: 0 | Q114: 0 | R114: 0
A115: Sedco 711 | B115: (6), (19) | C115: semi | E115: 1982 | F115: 1800 | G115: 25000 | H115: UKNS | I115: Talisman | J115: 2012-11-01 | K115: 2013-07-01 | L115: 275000 | M115: 265000 | O115: 0 | P115: 0 | Q115: 51 | R115: 79
B116: -6 | H116: UKNS | I116: Talisman | J116: 2013-12-01 | K116: 2015-12-01 | L116: 350000 | M116: 275000
A117: Transocean John Shaw | B117: (7), (12) | C117: semi | E117: 1982 | F117: 1800 | G117: 25000 | H117: UKNS | I117: Taqa | J117: 2012-12-01 | K117: 2013-09-01 | L117: 318000 | M117: 274000 | O117: 0 | P117: 0 | Q117: 0 | R117: 31
B118: -7 | H118: UKNS | I118: EOG | J118: 2013-09-01 | K118: 2013-09-01 | L118: 318000 | M118: 318000
B119: -7 | H119: UKNS | I119: Taqa | J119: 2013-10-01 | K119: 2013-11-01 | L119: 358000 | M119: 318000
B120: -7 | H120: UKNS | I120: Taqa | J120: 2014-03-01 | K120: 2015-02-01 | L120: 358000 | M120: 358000
A121: GSF Arctic III | B121: -7 | C121: semi | E121: 1984 | F121: 1800 | G121: 25000 | H121: UKNS | I121: Chevron | J121: 2013-04-01 | K121: 2013-06-01 | L121: 360000 | M121: 315000 | O121: 0 | P121: 0 | Q121: 0 | R121: 0
B122: (6), (7) | H122: UKNS | I122: ATP Oil & Gas | J122: 2013-06-01 | K122: 2013-08-01 | L122: 313000 | M122: 360000
B123: -7 | H123: UKNS | I123: Chevron | J123: 2013-08-01 | K123: 2013-09-01 | L123: 360000 | M123: 313000
B124: (6), (7) | H124: UKNS | I124: ATP Oil & Gas | J124: 2013-09-01 | K124: 2015-05-01 | L124: 313000 | M124: 360000
A125: Sedco 712 | B125: -6 | C125: semi | E125: 1983 | F125: 1600 | G125: 25000 | H125: UKNS | I125: Talisman | J125: 2013-10-01 | K125: 2016-10-01 | L125: 380000 | M125: N/A | O125: 53 | P125: 91 | Q125: 92 | R125: 6
A126: Sedco 714 | B126: -7 | C126: semi | E126: 1983/1997 | F126: 1600 | G126: 25000 | H126: UKNS | I126: Total | J126: 2012-12-01 | K126: 2013-12-01 | L126: 392000 | M126: 398000 | O126: 0 | P126: 0 | Q126: 0 | R126: 0
B127: (6), (7) | H127: UKNS | I127: Total | J127: 2014-04-01 | K127: 2015-10-01 | L127: 430000 | M127: 392000
A128: GSF Grand Banks | B128: (6), (8), (12) | C128: semi | E128: 1984 | F128: 1500 | G128: 25000 | H128: Canada | I128: Husky | J128: 2013-01-01 | K128: 2015-09-01 | L128: 409000 | M128: 297000 | O128: 0 | P128: 0 | Q128: 0 | R128: 35
A129: Actinia | C129: semi | E129: 1982 | F129: 1500 | G129: 25000 | H129: India | I129: ONGC | J129: 2012-06-01 | K129: 2015-07-01 | L129: 190000 | M129: 222000 | O129: 0 | P129: 0 | Q129: 0 | R129: 0
A130: Sedco 601 | C130: semi | E130: 1983 | F130: 1500 | G130: 25000 | H130: Malaysia | K130: Stacked | O130: 0 | P130: 0 | Q130: 0 | R130: 0
A131: Sedneth 701 | B131: -7 | C131: semi | E131: 1972/1993 | F131: 1500 | G131: 25000 | H131: Nigeria | I131: NPDC | J131: 2012-09-01 | K131: 2014-09-01 | L131: 311000 | M131: 275000 | O131: 0 | P131: 0 | Q131: 0 | R131: 0
A132: Transocean Winner | B132: (6), (7) | C132: semi | E132: 1983 | F132: 1500 | G132: 25000 | H132: NNS | I132: Marathon | J132: 2013-01-01 | K132: 2015-01-01 | L132: 460000 | M132: 495000 | O132: 0 | P132: 0 | Q132: 0 | R132: 0
A133: Transocean Searcher | B133: (6), (7) | C133: semi | E133: 1983/1988 | F133: 1500 | G133: 25000 | H133: NNS | I133: BG | J133: 2012-06-01 | K133: 2015-05-01 | L133: 397000 | M133: 447000 | O133: 14.75 | P133: 68 | Q133: 0 | R133: 0
A134: Transocean Prospect | B134: (6), (7) | C134: semi | E134: 1983/1992 | F134: 1500 | G134: 25000 | H134: UKNS | I134: Nexen | J134: 2013-02-01 | K134: 2013-08-01 | L134: 248000 | M134: 247000 | O134: 0 | P134: 0 | Q134: 0 | R134: 0
B135: -7 | H135: UKNS | I135: Nexen | J135: 2013-08-01 | K135: 2014-02-01 | L135: 425000 | M135: 248000
B136: (6), (7) | H136: UKNS | I136: Conoco Phillips | J136: 2014-02-01 | K136: 2014-11-01 | L136: 403000 | M136: 425000
B137: (6), (7) | H137: UKNS | I137: Conoco Phillips | J137: 2014-11-01 | K137: 2015-02-01 | L137: 373000 | M137: 403000
A138: J.W. McLean | C138: semi | E138: 1974/1996 | F138: 1250 | G138: 25000 | H138: UKNS | K138: Stacked | O138: 0 | P138: 0 | Q138: 0 | R138: 0
A139: Sedco 704 | B139: (6), (7) | C139: semi | E139: 1974/1993 | F139: 1000 | G139: 25000 | H139: UKNS | I139: Maersk | J139: 2013-05-01 | K139: 2015-05-01 | L139: 353000 | M139: 335000 | O139: 50 | P139: 70 | Q139: 0 | R139: 0
M141: Total Estimated Days Out of Service | O141: =SUM(O104:O139) -> 117.75 | P141: =SUM(P104:P139) -> 344 | Q141: 194 | R141: =SUM(R104:R139) -> 151
M142: Estimated Average Contract Dayrate(5) | O142: 310000 | P142: 317000 | Q142: 329000 | R142: 341000
A144: High Specification Jackups (10)
O145: =IF(ISERROR(VLOOKUP($A145,'[1]April 2013'!$B$4:$V$47,18,FALSE)),0,VLOOKUP($A145,'[1]April 2013'!$B$4:$V$47,18,FALSE)) -> 0 | P145: =IF(ISERROR(VLOOKUP($A145,'[1]April 2013'!$B$4:$V$47,19,FALSE)),0,VLOOKUP($A145,'[1]April 2013'!$B$4:$V$47,19,FALSE)) -> 0 | Q145: =IF(ISERROR(VLOOKUP($A145,'[1]April 2013'!$B$4:$V$47,20,FALSE)),0,VLOOKUP($A145,'[1]April 2013'!$B$4:$V$47,20,FALSE)) -> 0 | R145: =IF(ISERROR(VLOOKUP($A145,'[1]April 2013'!$B$4:$V$47,21,FALSE)),0,VLOOKUP($A145,'[1]April 2013'!$B$4:$V$47,21,FALSE)) -> 0
A146: GSF Constellation I | B146: -6 | E146: 2003 | F146: 400 | G146: 30000 | H146: Indonesia | I146: Total | J146: 2012-09-01 | K146: 2016-01-01 | L146: 150000 | M146: 140000 | O146: 35 | P146: 0 | Q146: 0 | R146: 28
A147: GSF Constellation II | B147: -6 | E147: 2004 | F147: 400 | G147: 30000 | H147: Gabon | I147: Total | J147: 2012-10-01 | K147: 2015-07-01 | L147: 160000 | M147: 109000 | O147: 19.25 | P147: 0 | Q147: 0 | R147: 0
A148: GSF Galaxy I | B148: -7 | E148: 1991/2001 | F148: 400 | G148: 30000 | H148: UKNS | I148: Nexen | J148: 2012-07-01 | K148: 2013-09-13 | L148: 129000 | M148: N/A | O148: 0 | P148: 0 | Q148: 12 | R148: 79
A149: GSF Galaxy II | B149: -7 | E149: 1998 | F149: 400 | G149: 30000 | H149: UKNS | I149: GDF Suez | J149: 2012-12-01 | K149: 2013-09-01 | L149: 188000 | M149: 173000 | O149: 0 | P149: 0 | Q149: 12 | R149: 80
B150: -7 | H150: UKNS | I150: GDF Suez | J150: 2013-12-01 | K150: 2014-03-01 | L150: 207000 | M150: 188000
B151: -7 | H151: UKNS | I151: GDF Suez | J151: 2014-03-01 | K151: 2014-11-01 | L151: 218000 | M151: 207000
A152: GSF Galaxy III | B152: (6), (7) | E152: 1999 | F152: 400 | G152: 30000 | H152: UKNS | I152: Nexen | J152: 2012-01-01 | K152: 2013-07-01 | L152: 144000 | M152: 109000 | O152: 0 | P152: 0 | Q152: 0 | R152: 0
B153: -7 | H153: UKNS | I153: Nexen | J153: 2013-07-01 | K153: 2014-04-01 | L153: 218000 | M153: 144000
A154: Transocean Honor | B154: -6 | E154: 2012 | F154: 400 | G154: 30000 | H154: Angola | I154: Chevron | J154: 2012-05-01 | K154: 2015-05-01 | L154: 149000 | M154: N/A | O154: 0 | P154: 0 | Q154: 0 | R154: 0
A155: GSF Magellan | E155: 1992 | F155: 350 | G155: 30000 | H155: Nigeria | I155: ExxonMobil | J155: 2012-11-01 | K155: 2013-05-01 | L155: 160000 | M155: 143000 | O155: 0 | P155: 0 | Q155: 0 | R155: 0
I156: ExxonMobil | J156: 2013-05-01 | K156: 2014-05-01 | L156: 168000 | M156: 160000
A157: GSF Monarch | B157: (6), (7) | E157: 1986 | F157: 350 | G157: 30000 | H157: Denmark | I157: Maersk Oil | J157: 2011-07-01 | K157: 2013-07-01 | L157: 94000 | M157: N/A | O157: 0 | P157: 0 | Q157: 47 | R157: 13
B158: (6), (7) | H158: UKNS | I158: GDF Suez | J158: 2013-09-01 | K158: 2015-03-01 | L158: 160000 | M158: 95000
A159: GSF Monitor | E159: 1989 | F159: 350 | G159: 30000 | H159: Nigeria | I159: NPDC | J159: 2012-09-01 | K159: 2013-10-01 | L159: 153000 | M159: 118000 | O159: 0 | P159: 0 | Q159: 0 | R159: 0
A160: Transocean Siam Driller | B160: -6 | E160: 2013 | F160: 350 | G160: 35000 | H160: Thailand | I160: Chevron | J160: 2013-03-27 | K160: 2018-03-26 | L160: 135000 | M160: N/A | O160: 0 | P160: 0 | Q160: 0 | R160: 0
M161: Total Estimated Days Out of Service | O161: =SUM(O146:O159) -> 54.25 | P161: =SUM(P146:P159) -> 0 | Q161: =SUM(Q146:Q159) -> 71 | R161: =SUM(R146:R159) -> 200
M162: Estimated Average Contract Dayrate(5) | O162: 159000 | P162: 156000 | Q162: 157000 | R162: 159000
O165: =SUM(O58,O80,O99,O141,O161) -> 436.1875 | P165: =SUM(P58,P80,P99,P141,P161) -> 507 | Q165: =SUM(Q58,Q80,Q99,Q141,Q161) -> 470 | R165: =SUM(R58,R80,R99,R141,R161) -> 565
A168: Fixed-Price Options - See Footnote 10
A170: Rigs Under Construction
A172: Deepwater Asgard | C172: ship | D172: « | E172: TBA | F172: 12000 | G172: 40000 | H172: Indonesia | I172: TBA | J172: Q1 2017 | K172: Q1 2018 | L172: 500000 | M172: 600000
A174: High Specification Floater: Ultra-Deepwater
A176: Deepwater Expedition | C176: ship | D176: « | E176: 1999 | F176: 8500 | G176: 30000 | H176: Saudi Arabia | I176: Saudi Aramco | J176: 2014-11-01 | K176: 2015-07-01 | L176: 695000 | M176: 650000
H177: Saudi Arabia | I177: Saudi Aramco | J177: 2015-09-01 | K177: 2016-05-01 | L177: 695000 | M177: 695000
H178: Saudi Arabia | I178: Saudi Aramco | J178: 2016-05-01 | K178: 2016-12-01 | L178: 695000 | M178: 695000
A180: High Specification Floater: Deepwater
A182: Discoverer Seven Seas | C182: ship | D182: « | E182: 1976/1997 | F182: 7000 | G182: 25000 | H182: Indonesia | I182: Inpex | J182: 2013-11-01 | K182: 2014-01-01 | L182: 500000 | M182: 500000
A184: High Specification Floater: Harsh Environment
A186: Transocean Spitsbergen | B186: (6), (7), (17) | C186: semi | D186: « | E186: 2010 | F186: 10000 | G186: 30000 | H186: NNS | I186: Statoil | J186: 2015-07-01 | K186: 2017-07-01 | L186: 549000 | M186: 533000
A187: Transocean Leader | B187: (6), (7) | C187: semi | E187: 1987/1997 | F187: 4500 | G187: 25000 | H187: NNS | I187: Statoil | J187: 2015-03-01 | K187: 2016-03-01 | L187: 412000 | M187: 400000
A189: High Specification Jackups
A191: GSF Constellation II | B191: -6 | E191: 2004 | F191: 400 | G191: 30000 | H191: Gabon | I191: Total | J191: 2015-07-01 | K191: 2016-07-01 | L191: 160000 | M191: 109000
A193: Revenue Efficiency
A194: Revenue efficiency is defined as actual contract drilling revenues for the measurement period divided by the maximum revenue calculated for the measurement period, expressed as a percentage. Maximum revenue is defined as the greatest amount of contract drilling revenues the drilling unit could earn for the measurement period, excluding amounts related to incentive provisions. Revenue Efficiency does not apply during Out of Service Days (Shipyard, Mobilizations, Demobilizations, Contract Preparation).
C196: Q4 2012 Actual | D196: Q3 2012 Actual | E196: Q2 2012 Actual | F196: Q1 2012 Actual | G196: Q4 2011 Actual | H196: Q3 2011 Actual | I196: Q2 2011 Actual | J196: Q1 2011 Actual
A197: Ultra Deepwater | C197: 0.955 | D197: 0.959 | E197: 0.924 | F197: 0.89 | G197: 0.8955624474 | H197: 0.8651253637 | I197: 0.8962190693 | J197: 0.856
A198: Deepwater | C198: 0.909 | D198: 0.961 | E198: 0.945 | F198: 0.831 | G198: 0.8965905207 | H198: 0.8935864399 | I198: 0.9560448995 | J198: 0.889
A199: Harsh Environment Floaters | C199: 0.973 | D199: 0.954 | E199: 0.979 | F199: 0.978 | G199: 0.9801525435 | H199: 0.9443555496 | I199: 0.9842315096 | J199: 0.992
A200: Midwater Floaters | C200: 0.939 | D200: 0.904 | E200: 0.882 | F200: 0.906 | G200: 0.9538532553 | H200: 0.9159069677 | I200: 0.9285945615 | J200: 0.94
A201: High Specification Jackups | C201: 0.952 | D201: 0.972 | E201: 0.943 | F201: 0.921 | G201: 0.934 | H201: 0.968 | I201: 0.946 | J201: 0.941
A202: Total Fleet - Continuing Operations | C202: 0.947 | D202: 0.949 | E202: 0.927 | F202: 0.896 | G202: 0.918 | H202: 0.889 | I202: 0.92 | J202: 0.893
A204: Estimated Contract Drilling Revenue can be calculated as: | C204: Paid Days on Contract * Average Contract Dayrate * Revenue Efficiency

Sheet Footnotes
B2: =Report!A2 -> Updated: April 18, 2013
B3: =Report!A3 -> Revisions Noted in Bold
B5: Footnotes
A6: Prev
A7: (1) | B7: (1) | C7: Dates shown are the original service date and the date of the most recent upgrade, if any.
A8: (2) | B8: (2) | C8: Estimated Contract Start and Estimated Expiration Dates are calculated as follows: (1) for events estimated to occur between the 1st and 15th of a month, the previous month is reported (i.e. a contract which is estimated to commence on May 4, 2011 will be reported as commencing in April 2011) and (2) for events estimated to occur between the 16th and the end of a month, the actual month is reported (i.e. a contract which is estimated to commence on May 24, 2011 will be reported as commencing in May 2011). Expiration dates represent the company's current estimate of the earliest date the contract for each rig is likely to expire. Some rigs have two or more contracts in continuation, so the last line shows the estimated earliest availability. Many contracts permit the customer to extend the contract.
A9: (3) | B9: (3) | C9: Represents the full operating dayrate, although the average dayrate over the term of the contract will be lower and could be substantially lower. Does not reflect incentive programs which are typically based on the rig's operating performance against a performance curve. Please refer to the “Customer Contract Duration and Dayrates and Risks Associated with Operations” section of the Disclaimers & Definitions for a description of dayrates. This column may not reflect the rate currently being received under the contract as a result of an applicable standby rate or other rate, which typically is less than the contract dayrate.
A10: (4) | B10: (4) | C10: The out of service time represents those days where a rig is scheduled to be out of service and not be available to earn an operating dayrate. Please refer to the “Out of Service Days (Shipyards, Mobilizations, Demobilizations, Contract Preparation)” section of the Disclaimers & Definitions for a full description.
A11: (5) | B11: (5) | C11: Estimated Average Contract Dayrate is defined as the average contracted full operating dayrate to be earned per revenue earning day. See note (3) for definition of full operating dayrate.
A12: (6) | B12: (6) | C12: Reflects the current contracted dayrate which could reflect prior cost escalations and could change in the future due to further cost escalations.
A13: (7) | B13: (7) | C13: Reflects the current contracted dayrate which is comprised of a foreign currency component and which could change due to foreign exchange adjustments.
A14: (8) | B14: (8) | C14: Current contract provides for a bonus incentive opportunity not reflected in the stated current contract dayrate.
A15: (9) | B15: (9) | C15: For the period of time that this rig is contracted to Applied Drilling Technology International, the drilling management services division of the company's U.K. operating subsidiary, accounting rules require that we eliminate the revenues and costs related to those contracts from the contract drilling segment of the consolidated statement of operations. Revenues from turnkey contracts will be recognized in other revenues and are contingent upon successful completion of the well program.
A16: (10) | B16: (10) | C16: Fixed price options may be exercised at the customer’s discretion. During periods when dayrates on new contracts are increasing relative to existing contracts, the likelihood of customers’ exercising fixed price options increases. During periods when dayrates on new contracts are decreasing relative to existing contracts, the likelihood of customers’ exercising fixed price options declines.
A17: (11) | B17: (11) | C17: The contract is expected to start in the quarter indicated. Factors that could influence the contract start date include shipyard delivery, customer acceptance, and mobilization to operating location, among others.
A18: (12) | B18: (12) | C18: The rig's planned out of service time extends into the first quarter of 2014: Transocean John Shaw - 79 days, GSF Grand Banks - 99 days, and Sedco 702 - 8 days.
A19: (13) | B19: (13) | C19: Until August 2012, the contract dayrate was $469,000, subject to cost escalation. The dayrate for the remainder of the contract is linked to the standard West Texas Intermediate crude oil price with a floor of $40 per barrel resulting in a contract dayrate of $400,000 and a ceiling of $70 per barrel resulting in a contract dayrate of $500,000, subject to cost escalation.
A20: (14) | B20: (14) | C20: The rig is owned by a joint venture in which the company owns less than a 100 percent interest. Dayrate reflects 100 percent of the contract rate.
A21: (15) | B21: (15) | C21: The customer may elect to have the operating dayrate for the last five years of the contract fluctuate based on crude oil price with a floor of $458,250 corresponding to a crude oil price of less than or equal to $50 per barrel, and a ceiling of $558,250 corresponding to a crude oil price of $100 per barrel or greater.
A22: (17) | B22: (16) | C22: While the customer has the option to add any out of service days to the end of the contract, the Estimated Expiration Date does not reflect any extension due to this option until actually exercised by the customer.
A23: (18) | B23: (17) | C23: Dayrate excludes additional premiums for parallel operations at well centers and dynamic position operations.
A24: (19) | B24: (18) | C24: Dayrate excludes additional premiums for parallel operations at well centers, dynamic position operations and HPHT operations. Reduced dayrate will apply up to a maximum of 200 days for operation in water depths less or equal to 500 meters.
A25: (20) | B25: (19) | C25: The contract guarantees a minimum of 240 days at this dayrate which applies for drilling HPHT wells. The dayrate will become $265,000 if the rig drills standard wells.
B26: (20) | C26: Reflects the contracted dayrate for U.S. GOM operations and will be adjusted to reflect change in location to Tanzania.
B27: (21) | C27: Reflects the current contracted dayrate for Morocco operations, inclusive of taxes; dayrate will be adjusted to reflect change in location to Senegal.

Sheet Stacked&Idle
A2: =Report!A2 -> Updated: April 18, 2013
A3: =Report!A3 -> Revisions Noted in Bold
A5: Stacked Rigs
A6: Rig Type/Name | B6: Start Date
A7: Deepwater (3)
A9: Sedco 709 | B9: Prior to 2010
A10: Transocean Richardson | B10: 2011-03-15
A11: Sovereign Explorer | B11: 2010-11-01
A13: Midwater Floaters (6)
A15: Sedco 700 | B15: Prior to 2010
A16: C. Kirk Rhein, Jr. | B16: Prior to 2010
A17: GSF Aleutian Key | B17: 2010-01-09
A18: Sedco 703 | B18: Prior to 2010
A19: Sedco 601 | B19: 2011-04-09
A20: J.W. McLean | B20: 2011-04-13
A22: Idle Rigs
A23: Rig Type/Name | B23: Start Date
A24: Ultra-Deepwater (1)
A26: GSF Explorer | B26: 2013-01-20
A28: Midwater Floaters (1)
A30: GSF Arctic I | B30: 2013-01-01
A32: Stacked and Idle rigs detailed above are not currently operating on contract. Start date denotes when rig commences idle or stacked status.
A33: An "Idle" rig is between contracts, readily available for operations, and operating costs are typically at or near normal levels. A "Stacked" rig, on the other hand, is manned by a reduced crew or unmanned and typically has reduced operating costs and is (i) preparing for an extended period of inactivity, (ii) expected to continue to be inactive for an extended period, or (iii) completing a period of extended inactivity. However, stacked rigs will continue to incur operating costs at or above normal operating costs for 30 to 60 days following initiation of stacking.
J176: 2013-06-01
I177: =+J176 -> 2013-06-01 | J177: 2013-09-01

Sheet Disclaimers&Definitions
A3: DISCLAIMERS & DEFINITIONS
